[Event "Titled Tuesday Blitz August 17 2021"]
[White "Weetik, Vjacheslav"]
[Black "Barp, Alberto"]
[WhiteFideId "4153472"]
[BlackFideId "872555"]
[WhiteElo "2469"]
[BlackElo "2229"]
[Result "1-0"]
[Round "11"]
[TimeControl "180+1"]
[Date "2021.08.17"]
[WhiteClock "0:02:03"]
[BlackClock "0:02:22"]

1. d4 {[%clk 0:02:56]}  d5 {[%clk 0:02:58]} 2. Bf4 {[%clk 0:02:56]}  Nf6 {[%clk 0:02:57]} 3. e3 {[%clk 0:02:56]}  Bf5 {[%clk 0:02:57]} 4. c4 {[%clk 0:02:56]}  e6 {[%clk 0:02:57]} 5. Nc3 {[%clk 0:02:56]}  c6 {[%clk 0:02:57]} 6. Qb3 {[%clk 0:02:56]}  Qb6 {[%clk 0:02:57]} 7. c5 {[%clk 0:02:56]}  Qxb3 {[%clk 0:02:57]} 8. axb3 {[%clk 0:02:57]}  a6 {[%clk 0:02:57]} 9. b4 {[%clk 0:02:57]}  Be7 {[%clk 0:02:57]} 10. h3 {[%clk 0:02:50]}  O-O {[%clk 0:02:56]} 11. Nf3 {[%clk 0:02:49]}  Nbd7 {[%clk 0:02:56]} 12. Nd2 {[%clk 0:02:49]}  Bd8 {[%clk 0:02:52]} 13. g4 {[%clk 0:02:36]}  Bg6 {[%clk 0:02:52]} 14. b5 {[%clk 0:02:24]}  cxb5 {[%clk 0:02:34]} 15. Bxb5 {[%clk 0:02:22]}  Rc8 {[%clk 0:02:32]} 16. Ba4 {[%clk 0:02:14]}  Nb8 {[%clk 0:02:31]} 17. Bd6 {[%clk 0:02:09]}  Re8 {[%clk 0:02:27]} 18. g5 {[%clk 0:02:03]}  Nfd7 {[%clk 0:02:22]} 19. Bxb8 {[%clk 0:02:03]} 1-0


[Site "https://www.chess.com"]

[Event "Titled Tuesday Blitz August 17 2021"]
[White "Yeletsky, Ivan"]
[Black "Indjic, Aleksandar"]
[WhiteFideId "24180327"]
[BlackFideId "911925"]
[WhiteElo "2344"]
[BlackElo "2643"]
[Result "1-0"]
[Round "11"]
[TimeControl "180+1"]
[Date "2021.08.17"]
[WhiteClock "0:01:00"]
[BlackClock "0:00:01"]

1. d4 {[%clk 0:03:00]}  Nf6 {[%clk 0:02:59]} 2. c4 {[%clk 0:03:01]}  c5 {[%clk 0:03:00]} 3. d5 {[%clk 0:03:01]}  e6 {[%clk 0:03:00]} 4. Nc3 {[%clk 0:03:01]}  exd5 {[%clk 0:03:01]} 5. cxd5 {[%clk 0:03:02]}  d6 {[%clk 0:03:01]} 6. Nf3 {[%clk 0:03:02]}  g6 {[%clk 0:03:01]} 7. e4 {[%clk 0:03:03]}  a6 {[%clk 0:03:01]} 8. Bg5 {[%clk 0:02:58]}  h6 {[%clk 0:02:58]} 9. Bh4 {[%clk 0:02:57]}  g5 {[%clk 0:02:58]} 10. Bg3 {[%clk 0:02:57]}  Nh5 {[%clk 0:02:58]} 11. a4 {[%clk 0:02:55]}  Bg7 {[%clk 0:02:56]} 12. Nd2 {[%clk 0:02:55]}  Nxg3 {[%clk 0:02:55]} 13. hxg3 {[%clk 0:02:55]}  Nd7 {[%clk 0:02:56]} 14. Nc4 {[%clk 0:02:54]}  Ne5 {[%clk 0:02:56]} 15. Ne3 {[%clk 0:02:54]}  O-O {[%clk 0:02:51]} 16. g4 {[%clk 0:02:50]}  Re8 {[%clk 0:02:43]} 17. Be2 {[%clk 0:02:48]}  Rb8 {[%clk 0:02:41]} 18. Qc2 {[%clk 0:02:44]}  Bd7 {[%clk 0:02:39]} 19. Nf5 {[%clk 0:02:42]}  Bxf5 {[%clk 0:02:33]} 20. gxf5 {[%clk 0:02:43]}  Nd7 {[%clk 0:02:32]} 21. Kf1 {[%clk 0:02:35]}  Qe7 {[%clk 0:02:28]} 22. Re1 {[%clk 0:02:22]}  c4 {[%clk 0:02:22]} 23. Bxc4 {[%clk 0:02:10]}  Rec8 {[%clk 0:02:22]} 24. Qb3 {[%clk 0:02:11]}  b5 {[%clk 0:02:20]} 25. axb5 {[%clk 0:02:10]}  axb5 {[%clk 0:02:08]} 26. Nxb5 {[%clk 0:02:10]}  Ne5 {[%clk 0:01:59]} 27. Be2 {[%clk 0:02:09]}  Rc5 {[%clk 0:01:59]} 28. Qa4 {[%clk 0:02:01]}  g4 {[%clk 0:01:49]} 29. g3 {[%clk 0:02:01]}  Qd7 {[%clk 0:01:29]} 30. Nc3 {[%clk 0:02:00]}  Qd8 {[%clk 0:01:28]} 31. Nb5 {[%clk 0:01:55]}  Qb6 {[%clk 0:01:25]} 32. Nd4 {[%clk 0:01:55]}  Ra5 {[%clk 0:01:21]} 33. Qd1 {[%clk 0:01:54]}  Ra2 {[%clk 0:00:51]} 34. f6 {[%clk 0:01:47]}  Bxf6 {[%clk 0:00:49]} 35. Nf5 {[%clk 0:01:47]}  Rxb2 {[%clk 0:00:22]} 36. Rxh6 {[%clk 0:01:47]}  Bg5 {[%clk 0:00:23]} 37. Rh5 {[%clk 0:01:47]}  Bd2 {[%clk 0:00:18]} 38. Nh6+ {[%clk 0:01:43]}  Kf8 {[%clk 0:00:17]} 39. Nf5 {[%clk 0:01:44]}  Ng6 {[%clk 0:00:13]} 40. Kg2 {[%clk 0:01:31]}  Bxe1 {[%clk 0:00:13]} 41. Qxe1 {[%clk 0:01:32]}  Rb1 {[%clk 0:00:08]} 42. Qc3 {[%clk 0:01:31]}  Qb2 {[%clk 0:00:08]} 43. Qe3 {[%clk 0:01:19]}  Qc1 {[%clk 0:00:06]} 44. Qxc1 {[%clk 0:01:15]}  Rxc1 {[%clk 0:00:07]} 45. Bxg4 {[%clk 0:01:16]}  Rbb1 {[%clk 0:00:07]} 46. Nxd6 {[%clk 0:01:15]}  Rg1+ {[%clk 0:00:07]} 47. Kf3 {[%clk 0:01:15]}  Rb3+ {[%clk 0:00:06]} 48. Ke2 {[%clk 0:01:15]}  Rc1 {[%clk 0:00:06]} 49. Bf5 {[%clk 0:01:08]}  Ne5 {[%clk 0:00:04]} 50. Rh8+ {[%clk 0:01:02]}  Kg7 {[%clk 0:00:04]} 51. Rh5 {[%clk 0:01:02]}  Rc2+ {[%clk 0:00:03]} 52. Kf1 {[%clk 0:01:02]}  Rbb2 {[%clk 0:00:03]} 53. Ne8+ {[%clk 0:00:58]}  Kf8 {[%clk 0:00:02]} 54. Rh8+ {[%clk 0:00:58]}  Ke7 {[%clk 0:00:02]} 55. d6+ {[%clk 0:00:59]}  Kd8 {[%clk 0:00:01]} 56. Nf6# {[%clk 0:01:00]} 1-0


[Site "https://www.chess.com"]

[Event "Titled Tuesday Blitz August 17 2021"]
[White "Zakaryan_David"]
[Black "Ljukin, Sergei"]
[BlackFideId "14102200"]
[WhiteElo "2576"]
[BlackElo "2309"]
[Result "1-0"]
[Round "11"]
[TimeControl "180+1"]
[Date "2021.08.17"]
[WhiteClock "0:02:16"]
[BlackClock "0:01:48"]

1. e4 {[%clk 0:03:00]}  e6 {[%clk 0:02:53]} 2. d4 {[%clk 0:03:00]}  d5 {[%clk 0:02:54]} 3. Nc3 {[%clk 0:03:00]}  Bb4 {[%clk 0:02:53]} 4. e5 {[%clk 0:03:00]}  Ne7 {[%clk 0:02:52]} 5. a3 {[%clk 0:03:00]}  Bxc3+ {[%clk 0:02:52]} 6. bxc3 {[%clk 0:03:01]}  c5 {[%clk 0:02:52]} 7. Qg4 {[%clk 0:03:02]}  Qc7 {[%clk 0:02:52]} 8. Bd3 {[%clk 0:03:00]}  Qa5 {[%clk 0:02:50]} 9. Bd2 {[%clk 0:02:55]}  c4 {[%clk 0:02:50]} 10. Be2 {[%clk 0:02:56]}  Rg8 {[%clk 0:02:50]} 11. a4 {[%clk 0:02:51]}  Bd7 {[%clk 0:02:44]} 12. h4 {[%clk 0:02:50]}  Qb6 {[%clk 0:02:43]} 13. Bc1 {[%clk 0:02:48]}  Nbc6 {[%clk 0:02:41]} 14. Ba3 {[%clk 0:02:41]}  O-O-O {[%clk 0:02:39]} 15. Nf3 {[%clk 0:02:36]}  f6 {[%clk 0:02:38]} 16. a5 {[%clk 0:02:17]}  Qxa5 {[%clk 0:02:32]} 17. Kd2 {[%clk 0:02:17]}  fxe5 {[%clk 0:01:50]} 18. Bxe7 {[%clk 0:02:17]}  Qc7 {[%clk 0:01:47]} 19. Bxd8 {[%clk 0:02:16]}  Rxd8 {[%clk 0:01:48]} 20. Nxe5 {[%clk 0:02:16]}  Nxe5 {[%clk 0:01:48]} 21. dxe5 {[%clk 0:02:17]}  Qxe5 {[%clk 0:01:48]} 22. Qd4 {[%clk 0:02:16]} 1-0


[Site "https://www.chess.com"]

[Event "Titled Tuesday Blitz August 17 2021"]
[White "Zhigalko, Sergei"]
[Black "Wagner, Dennis"]
[WhiteFideId "13502956"]
[BlackFideId "24650684"]
[WhiteElo "2662"]
[BlackElo "2355"]
[Result "1-0"]
[Round "11"]
[TimeControl "180+1"]
[Date "2021.08.17"]
[WhiteClock "0:02:16"]
[BlackClock "0:00:59"]

1. e4 {[%clk 0:03:00]}  c5 {[%clk 0:03:00]} 2. Nf3 {[%clk 0:03:00]}  d6 {[%clk 0:03:01]} 3. d4 {[%clk 0:03:01]}  cxd4 {[%clk 0:03:01]} 4. Qxd4 {[%clk 0:03:02]}  Nf6 {[%clk 0:03:02]} 5. Nc3 {[%clk 0:03:02]}  a6 {[%clk 0:02:59]} 6. Bc4 {[%clk 0:03:02]}  Nc6 {[%clk 0:02:58]} 7. Qd3 {[%clk 0:03:03]}  e6 {[%clk 0:02:59]} 8. Bf4 {[%clk 0:03:03]}  Be7 {[%clk 0:02:40]} 9. O-O-O {[%clk 0:03:03]}  Na5 {[%clk 0:02:21]} 10. Bb3 {[%clk 0:03:02]}  Nxb3+ {[%clk 0:02:21]} 11. axb3 {[%clk 0:03:03]}  e5 {[%clk 0:02:21]} 12. Bg5 {[%clk 0:03:03]}  Be6 {[%clk 0:02:21]} 13. Bxf6 {[%clk 0:03:04]}  gxf6 {[%clk 0:02:17]} 14. Nh4 {[%clk 0:02:49]}  Qa5 {[%clk 0:02:11]} 15. Kb1 {[%clk 0:02:48]}  O-O-O {[%clk 0:02:05]} 16. Nd5 {[%clk 0:02:46]}  Bxd5 {[%clk 0:01:46]} 17. Qxd5 {[%clk 0:02:46]}  Qxd5 {[%clk 0:01:46]} 18. Rxd5 {[%clk 0:02:47]}  Kd7 {[%clk 0:01:47]} 19. Nf5 {[%clk 0:02:47]}  Ke6 {[%clk 0:01:48]} 20. Ng7+ {[%clk 0:02:47]}  Kd7 {[%clk 0:01:48]} 21. Nf5 {[%clk 0:02:45]}  Ke6 {[%clk 0:01:48]} 22. Rhd1 {[%clk 0:02:33]}  Rhg8 {[%clk 0:01:48]} 23. g3 {[%clk 0:02:32]}  h5 {[%clk 0:01:46]} 24. c4 {[%clk 0:02:27]}  b6 {[%clk 0:01:43]} 25. b4 {[%clk 0:02:18]}  Rc8 {[%clk 0:01:06]} 26. Rxd6+ {[%clk 0:02:18]}  Bxd6 {[%clk 0:00:59]} 27. Rxd6# {[%clk 0:02:16]} 1-0


[Site "https://www.chess.com"]

[Event "Titled Tuesday Blitz August 17 2021"]
[White "Zhuravleva, Olga"]
[Black "Gerzhoy, Leonid"]
[WhiteFideId "4145933"]
[BlackFideId "2806126"]
[WhiteElo "2119"]
[BlackElo "2528"]
[Result "0-1"]
[Round "11"]
[TimeControl "180+1"]
[Date "2021.08.18"]
[WhiteClock "0:00:03"]
[BlackClock "0:00:24"]

1. e4 {[%clk 0:03:00]}  d6 {[%clk 0:02:33]} 2. d4 {[%clk 0:03:00]}  Nf6 {[%clk 0:02:32]} 3. Bd3 {[%clk 0:03:00]}  e5 {[%clk 0:02:31]} 4. c3 {[%clk 0:02:59]}  Nc6 {[%clk 0:02:31]} 5. Nf3 {[%clk 0:02:56]}  Bg4 {[%clk 0:02:30]} 6. Be3 {[%clk 0:02:50]}  d5 {[%clk 0:02:29]} 7. dxe5 {[%clk 0:02:43]}  Nxe5 {[%clk 0:02:28]} 8. exd5 {[%clk 0:02:30]}  Qxd5 {[%clk 0:02:23]} 9. Be2 {[%clk 0:02:25]}  Qxd1+ {[%clk 0:02:20]} 10. Bxd1 {[%clk 0:02:25]}  Nxf3+ {[%clk 0:02:07]} 11. Bxf3 {[%clk 0:02:22]}  Bxf3 {[%clk 0:02:06]} 12. gxf3 {[%clk 0:02:23]}  O-O-O {[%clk 0:02:05]} 13. Ke2 {[%clk 0:02:22]}  Bd6 {[%clk 0:02:00]} 14. Nd2 {[%clk 0:02:18]}  Rhe8 {[%clk 0:01:59]} 15. Nc4 {[%clk 0:02:15]}  Bf4 {[%clk 0:01:52]} 16. Kf1 {[%clk 0:01:55]}  Bxe3 {[%clk 0:01:51]} 17. Nxe3 {[%clk 0:01:54]}  Rd2 {[%clk 0:01:49]} 18. Rb1 {[%clk 0:01:50]}  Nd5 {[%clk 0:01:46]} 19. Nxd5 {[%clk 0:01:37]}  Rxd5 {[%clk 0:01:45]} 20. Re1 {[%clk 0:01:29]}  Rde5 {[%clk 0:01:27]} 21. Rxe5 {[%clk 0:01:25]}  Rxe5 {[%clk 0:01:26]} 22. Kg2 {[%clk 0:01:26]}  Re2 {[%clk 0:01:25]} 23. Rb1 {[%clk 0:01:26]}  Rc2 {[%clk 0:01:24]} 24. f4 {[%clk 0:01:07]}  f5 {[%clk 0:01:21]} 25. Kf3 {[%clk 0:01:07]}  a5 {[%clk 0:01:19]} 26. Ke3 {[%clk 0:01:07]}  g6 {[%clk 0:01:16]} 27. h3 {[%clk 0:01:05]}  a4 {[%clk 0:01:15]} 28. a3 {[%clk 0:01:00]}  b5 {[%clk 0:01:13]} 29. f3 {[%clk 0:00:19]}  Kb7 {[%clk 0:01:13]} 30. Kd4 {[%clk 0:00:20]}  Kb6 {[%clk 0:01:07]} 31. Ke5 {[%clk 0:00:19]}  Rf2 {[%clk 0:01:05]} 32. b3 {[%clk 0:00:18]}  axb3 {[%clk 0:01:03]} 33. Rxb3 {[%clk 0:00:18]}  Rxf3 {[%clk 0:01:03]} 34. a4 {[%clk 0:00:18]}  c6 {[%clk 0:01:00]} 35. h4 {[%clk 0:00:18]}  h5 {[%clk 0:00:48]} 36. axb5 {[%clk 0:00:17]}  cxb5 {[%clk 0:00:47]} 37. Kf6 {[%clk 0:00:16]}  Rxf4 {[%clk 0:00:43]} 38. Kxg6 {[%clk 0:00:17]}  Rxh4 {[%clk 0:00:43]} 39. Kxf5 {[%clk 0:00:17]}  Rc4 {[%clk 0:00:39]} 40. Kg5 {[%clk 0:00:17]}  h4 {[%clk 0:00:39]} 41. Rb1 {[%clk 0:00:11]}  h3 {[%clk 0:00:37]} 42. Rb2 {[%clk 0:00:09]}  Rxc3 {[%clk 0:00:35]} 43. Kf4 {[%clk 0:00:10]}  Kc5 {[%clk 0:00:33]} 44. Ke4 {[%clk 0:00:10]}  b4 {[%clk 0:00:33]} 45. Rh2 {[%clk 0:00:10]}  b3 {[%clk 0:00:32]} 46. Kf4 {[%clk 0:00:08]}  Kb4 {[%clk 0:00:31]} 47. Ke4 {[%clk 0:00:07]}  Ka3 {[%clk 0:00:29]} 48. Kd4 {[%clk 0:00:07]}  Rg3 {[%clk 0:00:28]} 49. Kc4 {[%clk 0:00:05]}  b2 {[%clk 0:00:26]} 50. Rh1 {[%clk 0:00:06]}  Ka2 {[%clk 0:00:26]} 51. Rh2 {[%clk 0:00:04]}  Ka1 {[%clk 0:00:25]} 52. Rc2 {[%clk 0:00:03]}  b1=Q {[%clk 0:00:24]} 0-1


[Site "https://www.chess.com"]

[Event "Titled Tuesday Blitz August 17 2021"]
[White "volunteers1998"]
[Black "Barrionuevo, Pablo"]
[BlackFideId "110566"]
[WhiteElo "2243"]
[BlackElo "2250"]
[Result "0-1"]
[Round "11"]
[TimeControl "180+1"]
[Date "2021.08.18"]
[WhiteClock "0:00:01"]
[BlackClock "0:00:34"]

1. e4 {[%clk 0:03:00]}  c5 {[%clk 0:02:58]} 2. Nf3 {[%clk 0:03:00]}  Nc6 {[%clk 0:02:58]} 3. Bb5 {[%clk 0:02:58]}  d6 {[%clk 0:02:58]} 4. O-O {[%clk 0:02:56]}  Bd7 {[%clk 0:02:58]} 5. Re1 {[%clk 0:02:54]}  Nf6 {[%clk 0:02:56]} 6. c3 {[%clk 0:02:52]}  a6 {[%clk 0:02:55]} 7. Bf1 {[%clk 0:02:50]}  Bg4 {[%clk 0:02:53]} 8. h3 {[%clk 0:02:43]}  Bxf3 {[%clk 0:02:52]} 9. Qxf3 {[%clk 0:02:42]}  g6 {[%clk 0:02:52]} 10. d3 {[%clk 0:02:39]}  Bg7 {[%clk 0:02:52]} 11. Bg5 {[%clk 0:02:33]}  O-O {[%clk 0:02:51]} 12. Nd2 {[%clk 0:02:30]}  Rb8 {[%clk 0:02:49]} 13. a4 {[%clk 0:02:26]}  h6 {[%clk 0:02:47]} 14. Be3 {[%clk 0:02:19]}  Nd7 {[%clk 0:02:47]} 15. Qe2 {[%clk 0:02:16]}  b5 {[%clk 0:02:46]} 16. axb5 {[%clk 0:02:14]}  axb5 {[%clk 0:02:47]} 17. f4 {[%clk 0:02:08]}  b4 {[%clk 0:02:46]} 18. Rec1 {[%clk 0:02:01]}  Qc7 {[%clk 0:02:40]} 19. Nc4 {[%clk 0:01:55]}  Rb7 {[%clk 0:02:29]} 20. d4 {[%clk 0:01:49]}  bxc3 {[%clk 0:02:21]} 21. bxc3 {[%clk 0:01:50]}  cxd4 {[%clk 0:02:19]} 22. cxd4 {[%clk 0:01:48]}  Nxd4 {[%clk 0:02:18]} 23. Qa2 {[%clk 0:01:42]}  Nb3 {[%clk 0:02:16]} 24. Ne5 {[%clk 0:01:30]}  Nxc1 {[%clk 0:02:13]} 25. Rxc1 {[%clk 0:01:28]}  Qxc1 {[%clk 0:02:03]} 26. Bxc1 {[%clk 0:01:25]}  dxe5 {[%clk 0:02:03]} 27. Bb2 {[%clk 0:01:17]}  exf4 {[%clk 0:02:02]} 28. Bxg7 {[%clk 0:01:16]}  Kxg7 {[%clk 0:02:02]} 29. Qd5 {[%clk 0:01:12]}  Rfb8 {[%clk 0:01:59]} 30. Bc4 {[%clk 0:01:09]}  e6 {[%clk 0:01:58]} 31. Qd4+ {[%clk 0:01:06]}  Nf6 {[%clk 0:01:50]} 32. Kf2 {[%clk 0:00:59]}  Rb2+ {[%clk 0:01:48]} 33. Kf3 {[%clk 0:00:57]}  g5 {[%clk 0:01:45]} 34. e5 {[%clk 0:00:54]}  Nh5 {[%clk 0:01:42]} 35. h4 {[%clk 0:00:51]}  R8b4 {[%clk 0:01:38]} 36. Qd3 {[%clk 0:00:46]}  Ng3 {[%clk 0:01:31]} 37. hxg5 {[%clk 0:00:43]}  hxg5 {[%clk 0:01:32]} 38. Bxe6 {[%clk 0:00:32]}  Ne4 {[%clk 0:01:19]} 39. Qd7 {[%clk 0:00:28]}  Rb7 {[%clk 0:01:11]} 40. Qd8 {[%clk 0:00:24]}  Nd2+ {[%clk 0:01:05]} 41. Kg4 {[%clk 0:00:21]}  fxe6 {[%clk 0:01:05]} 42. Qxg5+ {[%clk 0:00:16]}  Kf8 {[%clk 0:01:04]} 43. Qd8+ {[%clk 0:00:14]}  Kf7 {[%clk 0:01:02]} 44. Qf6+ {[%clk 0:00:13]}  Ke8 {[%clk 0:01:02]} 45. Qxe6+ {[%clk 0:00:10]}  Kd8 {[%clk 0:01:02]} 46. Qd6+ {[%clk 0:00:10]}  Rd7 {[%clk 0:01:00]} 47. Qf6+ {[%clk 0:00:09]}  Kc7 {[%clk 0:00:58]} 48. e6 {[%clk 0:00:07]}  Ne4 {[%clk 0:00:40]} 49. Qxb2 {[%clk 0:00:03]}  Rd5 {[%clk 0:00:35]} 50. Qc2+ {[%clk 0:00:03]}  Nc5 {[%clk 0:00:35]} 51. Qc3 {[%clk 0:00:02]}  Kd6 {[%clk 0:00:34]} 52. e7 {[%clk 0:00:02]}  Kxe7 {[%clk 0:00:34]} 53. Qg7+ {[%clk 0:00:02]}  Kd6 {[%clk 0:00:34]} 54. Qf6+ {[%clk 0:00:02]}  Ne6 {[%clk 0:00:35]} 55. Qc3 {[%clk 0:00:01]}  Rg5+ {[%clk 0:00:34]} 56. Kf3 {[%clk 0:00:01]}  Rg3+ {[%clk 0:00:34]} 0-1